fUST/lending_fUST_20250217
["ID","MTS","AMOUNT","RATE_DAILY","PERIOD"]
[353366037,1739801193520,-500.0,0.00010958,2]
[353366038,1739801193542,-500.0,0.00010958,2]
[353366039,1739801193563,-524.55,0.00010958,2]
[353366040,1739801193584,-500.0,0.00010958,2]
[353366041,1739801193607,-2780.1020399,0.00010958,2]
[353366042,1739801237100,-501.85873953,0.0001074,2]
[353366043,1739801238080,-867.5809811,0.0001074,2]
[353366044,1739801249120,-1213.23369953,0.0001074,2]
[353366045,1739801351156,-3649.98148601,0.0001074,2]
[353366046,1739801351179,-300.0,0.00010847,2]
[353366047,1739801351200,-821.5774889,0.00010848,2]
[353366049,1739801365192,-17686.2566196,0.00010848,2]
[353366050,1739801365220,-92.82381836,0.00010958,2]
[353366118,1739801432759,-141.19540639,0.0001074,2]
[353366119,1739801432772,-83.33469587,0.0001074,2]
[353366120,1739801432781,-300.0,0.00010957,2]
[353366122,1739801432791,-407.17618164,0.00010958,2]
[353366124,1739801432800,-505.06601656,0.00010958,2]
[353366126,1739801432810,-500.0,0.00010958,2]
[353366127,1739801432819,-500.0,0.00010958,2]
[353366129,1739801432829,-500.0,0.00010958,2]
[353366132,1739801432840,-500.0,0.00010958,2]
[353366134,1739801432851,-500.0,0.00010958,2]
[353366136,1739801432860,-500.0,0.00010958,2]
[353366138,1739801432870,-500.0,0.00010958,2]
[353366140,1739801432883,-508.96069535,0.00010958,2]
[353366142,1739801432896,-500.0,0.00010958,2]
[353366144,1739801432906,-500.0,0.00010958,2]
[353366146,1739801432916,-500.0,0.00010958,2]
[353366148,1739801432927,-370.25510704,0.00010958,2]
[353366150,1739801432937,-500.0,0.00010958,2]
[353366152,1739801432947,-587.74,0.00010958,2]
[353366154,1739801432959,-500.0,0.00010958,2]
[353366156,1739801432969,-500.0,0.00010958,2]
[353366158,1739801432979,-370.98115921,0.00010958,2]
[353366159,1739801432988,-500.0,0.00010958,2]
[353366162,1739801433001,-500.0,0.00010958,2]
[353366164,1739801433011,-629.92438604,0.00010958,2]
[353366166,1739801433021,-500.0,0.00010958,2]
[353366168,1739801433032,-500.0,0.00010958,2]
[353366169,1739801433042,-603.3,0.00010958,2]
[353366172,1739801433054,-501.82934234,0.00010958,2]
[353366173,1739801433065,-504.06697858,0.00010958,2]
[353366175,1739801433075,-500.0,0.00010958,2]
[353366178,1739801433086,-502.13701773,0.00010958,2]
[353366180,1739801433097,-500.0,0.00010958,2]
[353366182,1739801433111,-502.69625505,0.00010958,2]
[353366184,1739801433125,-500.0,0.00010958,2]
[353366187,1739801433139,-515.43776932,0.00010958,2]
[353366189,1739801433153,-502.02998564,0.00010958,2]
[353366191,1739801433168,-506.46617369,0.00010958,2]
[353366193,1739801433180,-500.0,0.00010958,2]
[353366195,1739801433191,-502.07399454,0.00010958,2]
[353366196,1739801433205,-500.0,0.00010958,2]
[353366197,1739801433217,-502.45075623,0.00010958,2]
[353366198,1739801433230,-501.71481243,0.00010958,2]
[353366199,1739801433242,-500.0,0.00010958,2]
[353366200,1739801433256,-500.0,0.00010958,2]
[353366201,1739801433270,-500.0,0.00010958,2]
[353366202,1739801433283,-501.818581,0.00010958,2]
[353366203,1739801433295,-500.0,0.00010958,2]
[353366204,1739801433308,-500.0,0.00010958,2]
[353366205,1739801433321,-503.76587529,0.00010958,2]
[353366206,1739801433334,-500.0,0.00010958,2]
[353366207,1739801433346,-500.0,0.00010958,2]
[353366208,1739801433357,-3411.59,0.00010958,2]
[353366209,1739801433370,-500.0,0.00010958,2]
[353366210,1739801433382,-508.74771213,0.00010958,2]
[353366211,1739801433395,-500.0,0.00010958,2]
[353366212,1739801433407,-500.0,0.00010958,2]
[353366213,1739801433420,-500.0,0.00010958,2]
[353366214,1739801433433,-500.0,0.00010958,2]
[353366215,1739801433445,-500.0,0.00010958,2]
[353366216,1739801433458,-223.61,0.00010958,2]
[353366217,1739801433470,-500.0,0.00010958,2]
[353366218,1739801433481,-3682.49,0.00010958,2]
[353366219,1739801433492,-500.0,0.00010958,2]
[353366220,1739801433506,-500.0,0.00010958,2]
[353366221,1739801433517,-857.59,0.00010958,2]
[353366222,1739801433530,-523.7,0.00010958,2]
[353366223,1739801433542,-500.0,0.00010958,2]
[353366224,1739801433554,-500.0,0.00010958,2]
[353366225,1739801433567,-500.0,0.00010958,2]
[353366226,1739801433578,-500.0,0.00010958,2]
[353366227,1739801433589,-500.0,0.00010958,2]
[353366228,1739801433602,-500.0,0.00010958,2]
[353366229,1739801433615,-500.0,0.00010958,2]
[353366230,1739801433628,-500.0,0.00010958,2]
[353366231,1739801433640,-515.12839617,0.00010958,2]
[353366232,1739801433653,-587.55,0.00010958,2]
[353366233,1739801433664,-500.0,0.00010958,2]
[353366234,1739801433675,-6864.85,0.00010958,2]
[353366235,1739801433685,-459.82,0.00010958,2]
[353366236,1739801433696,-500.0,0.00010958,2]
[353366237,1739801433707,-500.0,0.00011041,2]
[353366238,1739801433721,-364.44,0.00011041,2]
[353366239,1739801433733,-500.0,0.00011041,2]
[353366240,1739801433747,-500.0,0.00011041,2]
[353366241,1739801433763,-500.0,0.00011041,2]
[353366242,1739801433775,-502.93515204,0.00011041,2]
[353366243,1739801433786,-502.94915229,0.00011041,2]
[353366244,1739801433797,-500.0,0.00011041,2]
[353366245,1739801433808,-500.0,0.00011041,2]
[353366246,1739801433819,-588.65167028,0.00011041,2]
[353366247,1739801433831,-500.0,0.00011041,2]
[353366248,1739801433844,-500.0,0.00011041,2]
[353366249,1739801433856,-500.0,0.00011041,2]
[353366250,1739801433868,-500.0,0.00011041,2]
[353366251,1739801433880,-500.0,0.00011041,2]
[353366252,1739801433895,-3411.59,0.00011041,2]
[353366253,1739801433907,-500.0,0.00011041,2]
[353366254,1739801433918,-500.0,0.00011041,2]
[353366255,1739801433932,-500.0,0.00011041,2]
[353366256,1739801433944,-500.0,0.00011041,2]
[353366257,1739801433955,-2280.75755319,0.00011041,2]
[353366258,1739801433972,-553.65706768,0.00011041,2]
[353366293,1739801438727,-500.0,0.00010958,2]
[353366295,1739801438737,-500.0,0.00010958,2]
[353366297,1739801438747,-349.55760473,0.00011041,2]
[353366303,1739801438932,-498.5177744,0.00011041,2]
[353366304,1739801438944,-87.96716847,0.00011041,2]
[353366305,1739801438956,-112.95283153,0.00011041,2]
[353366306,1739801438966,-582.22365853,0.00011041,2]
[353366307,1739801438983,-275.36634147,0.00011041,2]
[353366308,1739801438994,-500.0,0.00011041,2]
[353366309,1739801439005,-500.0,0.00011041,2]
[353366311,1739801439015,-174.36,0.00011041,2]
[353366312,1739801439025,-206.41,0.00011041,2]
[353366313,1739801439034,-381.55,0.00011041,2]
[353366314,1739801439043,-500.0,0.00011041,2]
[353366315,1739801439053,-532.21,0.00011041,2]
[353366316,1739801439063,-5845.29506933,0.00011041,2]
[353366951,1739801446631,-0.57872273,0.00011041,2]
[353366953,1739801446644,-1018.97620794,0.00011041,2]
[353366955,1739801446655,-500.0,0.00011041,2]
[353366957,1739801446666,-919.90689189,0.00011073,2]
[353366958,1739801446675,-168.68123365,0.00011105,2]
[353366960,1739801446685,-466.72189994,0.00011122,2]
[353366962,1739801446695,-500.0,0.00011123,2]
[353366964,1739801446705,-500.0,0.00011123,2]
[353366965,1739801446716,-500.0,0.00011123,2]
[353366967,1739801446726,-500.0,0.00011123,2]
[353366968,1739801446736,-500.0,0.00011123,2]
[353366970,1739801446746,-500.0,0.00011123,2]
[353366972,1739801446757,-500.0,0.00011123,2]
[353366974,1739801446767,-500.0,0.00011123,2]
[353366975,1739801446777,-500.0,0.00011123,2]
[353366977,1739801446787,-500.0,0.00011123,2]
[353366979,1739801446797,-3411.59,0.00011123,2]
[353366980,1739801446807,-500.0,0.00011123,2]
[353366982,1739801446817,-500.0,0.00011123,2]
[353366984,1739801446827,-435.93518195,0.00011123,2]
[353366985,1739801446836,-500.0,0.00011123,2]
[353366987,1739801446846,-3682.49,0.00011123,2]
[353366989,1739801446856,-438.32937507,0.00011123,2]
[353366990,1739801446868,-419.26062493,0.00011123,2]
[353366992,1739801446878,-500.0,0.00011123,2]
[353366994,1739801446889,-500.0,0.00011123,2]
[353366995,1739801446898,-500.0,0.00011123,2]
[353366997,1739801446910,-6864.85,0.00011123,2]
[353366999,1739801446920,-500.0,0.00011123,2]
[353367001,1739801446931,-751.08,0.00011204,2]
[353367002,1739801446941,-1403.79,0.00011204,2]
[353367004,1739801446951,-500.0,0.00011204,2]
[353367006,1739801446961,-500.0,0.00011204,2]
[353367008,1739801446971,-500.0,0.00011204,2]
[353367009,1739801446982,-539.94,0.00011204,2]
[353367011,1739801446997,-448.81009863,0.00011205,2]
[353367013,1739801447007,-500.0,0.00011205,2]
[353367015,1739801447016,-500.0,0.00011205,2]
[353367017,1739801447026,-500.0,0.00011205,2]
[353367018,1739801447049,-500.0,0.00011205,2]
[353367020,1739801447059,-500.0,0.00011205,2]
[353367022,1739801447069,-500.0,0.00011205,2]
[353367024,1739801447078,-500.0,0.00011205,2]
[353367025,1739801447090,-168.08902446,0.00011205,2]
[353367028,1739801447107,-331.91097554,0.00011205,2]
[353367030,1739801447120,-500.0,0.00011205,2]
[353367031,1739801447130,-144.18902446,0.00011205,2]
[353367043,1739801447271,-1301.8897108,0.00011205,2]
[353367045,1739801447283,-1338.44631931,0.00011205,2]
[353367054,1739801447387,-96.39788679,0.00011205,2]
[353367056,1739801447399,-395.22327585,0.00011205,2]
[353367058,1739801447411,-135.44378279,0.00011205,2]
[353367060,1739801447422,-500.0,0.00011205,2]
[353367062,1739801447431,-500.0,0.00011205,2]
[353367064,1739801447441,-500.0,0.00011205,2]
[353367066,1739801447451,-3682.49,0.00011205,2]
[353367067,1739801447461,-857.59,0.00011205,2]
[353367069,1739801447471,-500.0,0.00011205,2]
[353367071,1739801447481,-500.0,0.00011205,2]
[353367073,1739801447491,-500.0,0.00011205,2]
[353367074,1739801447500,-6864.85,0.00011205,2]
[353367076,1739801447510,-500.0,0.00011205,2]
[353367078,1739801447520,-751.08,0.00011286,2]
[353367080,1739801447540,-1403.79,0.00011286,2]
[353367081,1739801447555,-500.0,0.00011286,2]
[353367083,1739801447565,-500.0,0.00011286,2]
[353367085,1739801447576,-638.64,0.00011286,2]
[353367086,1739801447586,-539.94,0.00011286,2]
[353367088,1739801447596,-500.0,0.00011287,2]
[353367090,1739801447607,-500.0,0.00011287,2]
[353367092,1739801447617,-500.0,0.00011287,2]
[353367093,1739801447628,-500.0,0.00011287,2]
[353367095,1739801447639,-500.0,0.00011287,2]
[353367097,1739801447650,-500.0,0.00011287,2]
[353367099,1739801447660,-500.0,0.00011287,2]
[353367100,1739801447670,-500.0,0.00011287,2]
[353367102,1739801447680,-500.0,0.00011287,2]
[353367104,1739801447690,-3411.59,0.00011287,2]
[353367106,1739801447699,-500.0,0.00011287,2]
[353367107,1739801447709,-500.0,0.00011287,2]
[353367109,1739801447719,-500.0,0.00011287,2]
[353367111,1739801447731,-3682.49,0.00011287,2]
[353367113,1739801447743,-857.59,0.00011287,2]
[353367114,1739801447753,-500.0,0.00011287,2]
[353367116,1739801447763,-500.0,0.00011287,2]
[353367118,1739801447772,-500.0,0.00011287,2]
[353367120,1739801447782,-6864.85,0.00011287,2]
[353367121,1739801447792,-500.0,0.00011287,2]
[353367123,1739801447802,-500.0,0.00011368,2]
[353367125,1739801447811,-500.0,0.00011368,2]
[353367127,1739801447821,-359.80666188,0.00011368,2]
[353367128,1739801447831,-500.0,0.00011369,2]
[353367130,1739801447840,-500.0,0.00011369,2]
[353367132,1739801447850,-500.0,0.00011369,2]
[353367134,1739801447859,-500.0,0.00011369,2]
[353367135,1739801447869,-500.0,0.00011369,2]
[353367137,1739801447879,-500.0,0.00011369,2]
[353367139,1739801447892,-500.0,0.00011369,2]
[353367141,1739801447902,-500.0,0.00011369,2]
[353367142,1739801447911,-500.0,0.00011369,2]
[353367144,1739801447921,-3411.59,0.00011369,2]
[353367146,1739801447931,-500.0,0.00011369,2]
[353367148,1739801447941,-751.08,0.00011369,2]
[353367149,1739801447951,-500.0,0.00011369,2]
[353367151,1739801447961,-500.0,0.00011369,2]
[353367153,1739801447970,-3682.49,0.00011369,2]
[353367155,1739801447981,-857.59,0.00011369,2]
[353367156,1739801447991,-500.0,0.00011369,2]
[353367158,1739801448000,-500.0,0.00011369,2]
[353367160,1739801448010,-1403.79,0.00011369,2]
[353367162,1739801448020,-500.0,0.00011369,2]
[353367164,1739801448037,-500.0,0.00011369,2]
[353367165,1739801448047,-500.0,0.00011369,2]
[353367167,1739801448057,-539.94,0.00011369,2]
[353367169,1739801448067,-6864.85,0.00011369,2]
[353367171,1739801448078,-500.0,0.00011369,2]
[353367172,1739801448087,-804.80817883,0.00011417,2]
[353367174,1739801448098,-1697.0657974,0.00011447,2]
[353367176,1739801448107,-751.08,0.00011451,2]
[353367177,1739801448116,-1403.79,0.00011451,2]
[353367179,1739801448126,-500.0,0.00011451,2]
[353367181,1739801448135,-500.0,0.00011451,2]
[353367183,1739801448145,-539.94,0.00011451,2]
[353367184,1739801448154,-500.0,0.00011452,2]
[353367186,1739801448164,-500.0,0.00011452,2]
[353367188,1739801448174,-500.0,0.00011452,2]
[353367190,1739801448183,-500.0,0.00011452,2]
[353367191,1739801448192,-500.0,0.00011452,2]
[353367193,1739801448203,-500.0,0.00011452,2]
[353367195,1739801448214,-500.0,0.00011452,2]
[353367197,1739801448224,-500.0,0.00011452,2]
[353367198,1739801448235,-500.0,0.00011452,2]
[353367200,1739801448245,-3411.59,0.00011452,2]
[353367202,1739801448254,-500.0,0.00011452,2]
[353367204,1739801448264,-500.0,0.00011452,2]
[353367205,1739801448274,-500.0,0.00011452,2]
[353367207,1739801448292,-3682.49,0.00011452,2]
[353367209,1739801448302,-857.59,0.00011452,2]
[353367211,1739801448312,-500.0,0.00011452,2]
[353367212,1739801448323,-500.0,0.00011452,2]
[353367214,1739801448334,-187.463707,0.00011452,2]
[353367216,1739801448344,-187.463707,0.00011452,2]
[353367218,1739801448355,-588.263726,0.00011452,2]
[353367219,1739801448366,-588.263726,0.00011452,2]
[353367221,1739801448377,-500.0,0.00011452,2]
[353367223,1739801448387,-1065.534532,0.00011452,2]
[353367225,1739801448398,-1065.534532,0.00011452,2]
[353367227,1739801448408,-6864.85,0.00011452,2]
[353367228,1739801448419,-151.0,0.00011452,2]
[353367230,1739801448429,-500.0,0.00011452,2]
[353367232,1739801448438,-751.08,0.00011533,2]
[353367233,1739801448447,-1403.79,0.00011533,2]
[353367244,1739801448581,-500.0,0.00011533,2]
[353367246,1739801448595,-500.0,0.00011533,2]
[353367248,1739801448606,-539.94,0.00011533,2]
[353367250,1739801448616,-500.0,0.00011534,2]
[353367252,1739801448626,-500.0,0.00011534,2]
[353367254,1739801448636,-500.0,0.00011534,2]
[353367256,1739801448646,-500.0,0.00011534,2]
[353367258,1739801448656,-500.0,0.00011534,2]
[353367259,1739801448666,-500.0,0.00011534,2]
[353367261,1739801448677,-500.0,0.00011534,2]
[353367263,1739801448687,-484.82,0.00011534,2]
[353367265,1739801448698,-500.0,0.00011534,2]
[353367267,1739801448708,-3411.59,0.00011534,2]
[353367268,1739801448718,-500.0,0.00011534,2]
[353367269,1739801448729,-500.0,0.00011534,2]
[353367270,1739801448740,-500.0,0.00011534,2]
[353367271,1739801448751,-1478.178615,0.00011534,2]
[353367272,1739801448762,-1478.178615,0.00011534,2]
[353367273,1739801448773,-3682.49,0.00011534,2]
[353367274,1739801448788,-857.59,0.00011534,2]
[353367275,1739801448798,-500.0,0.00011534,2]
[353367276,1739801448808,-500.0,0.00011534,2]
[353367277,1739801448819,-336.84,0.00011534,2]
[353367278,1739801448831,-6864.85,0.00011534,2]
[353367279,1739801448843,-500.0,0.00011534,2]
[353367280,1739801448855,-751.08,0.00011615,2]
[353367281,1739801448866,-1403.79,0.00011615,2]
[353367282,1739801448876,-500.0,0.00011615,2]
[353367283,1739801448890,-500.0,0.00011615,2]
[353367284,1739801448900,-539.94,0.00011615,2]
[353367285,1739801448910,-500.0,0.00011616,2]
[353367286,1739801448921,-500.0,0.00011616,2]
[353367287,1739801448931,-500.0,0.00011616,2]
[353367288,1739801448942,-500.0,0.00011616,2]
[353367289,1739801448953,-500.0,0.00011616,2]
[353367290,1739801448964,-500.0,0.00011616,2]
[353367291,1739801448975,-442.22892472,0.00011616,2]
[353367292,1739801448988,-500.0,0.00011616,2]
[353367293,1739801448999,-3411.59,0.00011616,2]
[353367294,1739801449010,-151.0,0.00011616,2]
[353367295,1739801449022,-151.0,0.00011616,2]
[353367296,1739801449034,-500.0,0.00011616,2]
[353367297,1739801449045,-500.0,0.00011616,2]
[353367299,1739801449056,-500.0,0.00011616,2]
[353367300,1739801449065,-3682.49,0.00011616,2]
[353367301,1739801449075,-857.59,0.00011616,2]
[353367303,1739801449086,-500.0,0.00011616,2]
[353367304,1739801449096,-500.0,0.00011616,2]
[353367306,1739801449106,-187.463707,0.00011616,2]
[353367308,1739801449117,-187.463707,0.00011616,2]
[353367310,1739801449128,-588.263726,0.00011616,2]
[353367312,1739801449140,-588.263726,0.00011616,2]
[353367314,1739801449151,-1065.534532,0.00011616,2]
[353367316,1739801449161,-1065.534532,0.00011616,2]
[353367318,1739801449174,-6864.85,0.00011616,2]
[353367321,1739801449185,-151.0,0.00011616,2]
[353367323,1739801449195,-500.0,0.00011616,2]
[353367325,1739801449205,-412.19854216,0.00011636,2]
[353367327,1739801449215,-413.76954208,0.0001168,2]
[353367329,1739801449226,-288.66310031,0.0001168,2]
[353367331,1739801449237,-500.0,0.00011686,2]
[353367333,1739801449247,-500.0,0.00011686,2]
[353367334,1739801449257,-500.0,0.00011686,2]
[353367336,1739801449267,-751.08,0.00011697,2]
[353367338,1739801449280,-1403.79,0.00011697,2]
[353367341,1739801449291,-500.0,0.00011697,2]
[353367343,1739801449302,-500.0,0.00011697,2]
[353367345,1739801449315,-539.94,0.00011697,2]
[353367347,1739801449326,-500.0,0.00011698,2]
[353367349,1739801449337,-500.0,0.00011698,2]
[353367351,1739801449348,-500.0,0.00011698,2]
[353367353,1739801449359,-500.0,0.00011698,2]
[353367355,1739801449371,-500.0,0.00011698,2]
[353367357,1739801449382,-500.0,0.00011698,2]
[353367359,1739801449393,-500.0,0.00011698,2]
[353367361,1739801449404,-3411.59,0.00011698,2]
[353367363,1739801449414,-500.0,0.00011698,2]
[353367365,1739801449424,-500.0,0.00011698,2]
[353367367,1739801449434,-500.0,0.00011698,2]
[353367369,1739801449445,-1478.178615,0.00011698,2]
[353367371,1739801449456,-1478.178615,0.00011698,2]
[353367373,1739801449467,-3682.49,0.00011698,2]
[353367375,1739801449477,-857.59,0.00011698,2]
[353367377,1739801449487,-500.0,0.00011698,2]
[353367379,1739801449498,-500.0,0.00011698,2]
[353367381,1739801449509,-6864.85,0.00011698,2]
[353367383,1739801449521,-500.0,0.00011698,2]
[353367385,1739801449535,-151.0,0.000117,2]
[353367388,1739801449546,-500.0,0.00011731,2]
[353367389,1739801449557,-751.08,0.00011779,2]
[353367392,1739801449568,-1403.79,0.00011779,2]
[353367393,1739801449578,-500.0,0.00011779,2]
[353367396,1739801449588,-500.0,0.00011779,2]
[353367398,1739801449598,-539.94,0.00011779,2]
[353367400,1739801449609,-500.0,0.0001178,2]
[353367402,1739801449619,-533.88,0.0001178,2]
[353367404,1739801449629,-500.0,0.0001178,2]
[353367406,1739801449639,-202.855906,0.0001178,2]
[353367408,1739801449648,-202.855906,0.0001178,2]
[353367410,1739801449658,-500.0,0.0001178,2]
[353367412,1739801449668,-500.0,0.0001178,2]
[353367414,1739801449678,-500.0,0.0001178,2]
[353367416,1739801449688,-151.0,0.0001178,2]
[353367418,1739801449697,-151.0,0.0001178,2]
[353367420,1739801449707,-348.17,0.0001178,2]
[353367422,1739801449717,-3411.59,0.0001178,2]
[353367424,1739801449727,-151.0,0.0001178,2]
[353367426,1739801449737,-151.0,0.0001178,2]
[353367428,1739801449747,-500.0,0.0001178,2]
[353367430,1739801449757,-638.48,0.0001178,2]
[353367432,1739801449767,-500.0,0.0001178,2]
[353367434,1739801449780,-3682.49,0.0001178,2]
[353367436,1739801449790,-857.59,0.0001178,2]
[353367438,1739801449800,-500.0,0.0001178,2]
[353367440,1739801449812,-500.0,0.0001178,2]
[353367441,1739801449823,-187.463707,0.0001178,2]
[353367443,1739801449833,-187.463707,0.0001178,2]
[353367445,1739801449843,-588.263726,0.0001178,2]
[353367448,1739801449854,-588.263726,0.0001178,2]
[353367449,1739801449864,-1065.534532,0.0001178,2]
[353367452,1739801449874,-1065.534532,0.0001178,2]
[353367454,1739801449885,-151.0,0.0001178,2]
[353367455,1739801449897,-6864.85,0.0001178,2]
[353367458,1739801449908,-500.0,0.0001178,2]
[353367460,1739801449918,-420.90678776,0.00011799,2]
[353367462,1739801449927,-151.0,0.00011809,2]
[353367464,1739801449937,-267.52808724,0.00011809,2]
[353367466,1739801449947,-152.03199042,0.00011809,2]
[353367467,1739801449957,-266.04038482,0.00011809,2]
[353367469,1739801449968,-160.01679871,0.00011809,2]
[353367472,1739801449978,-158.51664217,0.00011809,2]
[353367474,1739801449988,-502.06915056,0.00011809,2]
[353367476,1739801449998,-151.01585377,0.00011809,2]
[353367478,1739801450007,-200.04288825,0.00011852,2]
[353367479,1739801450017,-151.01585483,0.00011852,2]
[353367482,1739801450026,-151.01585468,0.00011852,2]
[353367483,1739801450038,-210.02204839,0.00011852,2]
[353367486,1739801450048,-190.76057223,0.00011852,2]
[353367488,1739801450059,-160.01679967,0.00011852,2]
[353367490,1739801450069,-151.01585574,0.00011852,2]
[353367492,1739801450079,-751.08,0.00011862,2]
[353367494,1739801450089,-1403.79,0.00011862,2]
[353367496,1739801450099,-500.0,0.00011862,2]
[353367497,1739801450109,-500.0,0.00011862,2]
[353367500,1739801450118,-539.94,0.00011862,2]
[353367501,1739801450128,-500.0,0.00011863,2]
[353367503,1739801450137,-500.0,0.00011863,2]
[353367505,1739801450147,-500.0,0.00011863,2]
[353367507,1739801450157,-500.0,0.00011863,2]
[353367510,1739801450168,-500.0,0.00011863,2]
[353367512,1739801450178,-3411.59,0.00011863,2]
[353367514,1739801450187,-500.0,0.00011863,2]
[353367515,1739801450197,-500.0,0.00011863,2]
[353367517,1739801450207,-1478.178615,0.00011863,2]
[353367519,1739801450217,-1478.178615,0.00011863,2]
[353367521,1739801450227,-3682.49,0.00011863,2]
[353367523,1739801450237,-857.59,0.00011863,2]
[353367526,1739801450248,-500.0,0.00011863,2]
[353367528,1739801450258,-500.0,0.00011863,2]
[353367530,1739801450269,-6864.85,0.00011863,2]
[353367532,1739801450280,-500.0,0.00011863,2]
[353367534,1739801450290,-159.9867966,0.00011879,2]
[353367536,1739801450299,-151.01585483,0.00011879,2]
[353367538,1739801450309,-151.0158558,0.00011879,2]
[353367540,1739801450319,-151.01585474,0.00011879,2]
[353367542,1739801450329,-500.48733404,0.00011879,2]
[353367544,1739801450338,-151.01585483,0.00011879,2]
[353367546,1739801450350,-751.08,0.00011944,2]
[353367548,1739801450360,-1403.79,0.00011944,2]
[353367550,1739801450369,-500.0,0.00011944,2]
[353367552,1739801450379,-500.0,0.00011944,2]
[353367554,1739801450388,-539.94,0.00011944,2]
[353367556,1739801450398,-500.0,0.00011945,2]
[353367558,1739801450407,-151.0,0.00011945,2]
[353367560,1739801450417,-151.0,0.00011945,2]
[353367562,1739801450426,-236.748349,0.00011945,2]
[353367564,1739801450435,-500.0,0.00011945,2]
[353367566,1739801450445,-236.748349,0.00011945,2]
[353367568,1739801450455,-500.0,0.00011945,2]
[353367570,1739801450465,-518.73,0.00011945,2]
[353367572,1739801450474,-641.33,0.00011945,2]
[353367574,1739801450483,-3411.59,0.00011945,2]
[353367576,1739801450492,-500.0,0.00011945,2]
[353367578,1739801450501,-231.47,0.00011945,2]
[353367580,1739801450511,-3682.49,0.00011945,2]
[353367582,1739801450520,-857.59,0.00011945,2]
[353367584,1739801450531,-500.0,0.00011945,2]
[353367586,1739801450541,-500.0,0.00011945,2]
[353367588,1739801450550,-177.145,0.00011945,2]
[353367590,1739801450559,-6864.85,0.00011945,2]
[353367592,1739801450568,-542.12,0.00011945,2]
[353367594,1739801450577,-273.04430181,0.00011964,2]
[353367596,1739801450586,-500.0,0.00011964,2]
[353367598,1739801450596,-500.0,0.00011964,2]
[353367600,1739801450607,-202.855906,0.00012,2]
[353367602,1739801450617,-202.855906,0.00012,2]
[353367604,1739801450626,-151.0,0.00012,2]
[353367606,1739801450635,-151.0,0.00012,2]
[353367608,1739801450646,-156.304595,0.00012,2]
[353367610,1739801450656,-187.463707,0.00012,2]
[353367612,1739801450666,-187.463707,0.00012,2]
[353367614,1739801450675,-588.263726,0.00012,2]
[353367616,1739801450684,-588.263726,0.00012,2]
[353367618,1739801450694,-1065.534532,0.00012,2]
[353367620,1739801450703,-1065.534532,0.00012,2]
[353367622,1739801450712,-751.08,0.00012026,2]
[353367624,1739801450721,-1403.79,0.00012026,2]
[353367626,1739801450731,-500.0,0.00012026,2]
[353367628,1739801450740,-500.0,0.00012026,2]
[353367630,1739801450749,-539.94,0.00012026,2]
[353367632,1739801450759,-500.0,0.00012027,2]
[353367634,1739801450768,-500.0,0.00012027,2]
[353367636,1739801450779,-500.0,0.00012027,2]
[353367638,1739801450788,-3411.59,0.00012027,2]
[353367640,1739801450798,-500.0,0.00012027,2]
[353367642,1739801450807,-1478.178615,0.00012027,2]